fUSD/lending_fUSD_20240728
["ID","MTS","AMOUNT","RATE_DAILY","PERIOD"]
[333484188,1722184769582,-155.0,8.219e-05,2]
[333484189,1722184784595,-485.05125098,8.219e-05,2]
[333484190,1722184786183,-363.62565954,8.219e-05,2]
[333484191,1722184792281,-305.0,8.219e-05,2]
[333484192,1722184793312,-1151.64206073,8.219e-05,2]
[333484193,1722184794055,-902.56084153,8.219e-05,2]
[333484194,1722184794746,-871.33841357,8.219e-05,2]
[333484195,1722184795531,-283.68168585,8.219e-05,2]
[333484196,1722184796195,-573.08406453,8.219e-05,2]
[333484198,1722184963100,-300.0,8.218e-05,2]
[333484199,1722184963125,-300.0,8.218e-05,2]
[333484200,1722184963148,-150.0,8.218e-05,2]
[333484201,1722184963171,-16587.9108426,8.219e-05,2]
[333484202,1722184963196,-871.33841357,8.219e-05,2]
[333484203,1722184963218,-24776.28752641,8.219e-05,2]
[333484204,1722184963240,-797.58813832,8.219e-05,2]
[333484205,1722184963264,-158.89214618,8.219e-05,2]
[333484206,1722184963287,-4254.79114212,8.219e-05,2]
[333484207,1722184963309,-199.75216777,8.219e-05,2]
[333484208,1722184963330,-411.49590119,8.219e-05,2]
[333484209,1722184963351,-155.0,8.219e-05,2]
[333484210,1722184963576,-363.62565954,8.219e-05,2]
[333484211,1722184963598,-291.18093939,8.219e-05,2]
[333484212,1722184963620,-360.0,9.04e-05,2]
[333484213,1722184963643,-23598.62,9.637e-05,2]
[333484214,1722184963664,-250.0,9.732e-05,2]
[333484215,1722184963685,-400.0,9.79e-05,2]
[333484216,1722184963705,-175.18,9.791e-05,2]
[333484217,1722184963727,-400.0,9.9e-05,3]
[333484218,1722184963747,-157.83,9.933e-05,2]
[333484219,1722184963768,-157.83,9.949e-05,2]
[333484220,1722184963788,-600.0,9.949e-05,2]
[333484221,1722184963808,-947.57589857,9.962e-05,2]
[333484222,1722184963828,-1236.37434046,9.962e-05,2]
[333484223,1722184963849,-157.83,9.966e-05,2]
[333484224,1722184963870,-157.83,9.983e-05,2]
[333484225,1722184963891,-800.0,0.0001,3]
[333484226,1722184963912,-175.81,0.0001,2]
[333484227,1722184963934,-175.81,0.0001,2]
[333484228,1722184963955,-175.81,0.0001,2]
[333484229,1722184963975,-175.81,0.0001,2]
[333484230,1722184963997,-175.81,0.0001,2]
[333484231,1722184964018,-175.81,0.0001,2]
[333484232,1722184964040,-175.81,0.0001,2]
[333484233,1722184964060,-175.81,0.0001,2]
[333484234,1722184964082,-175.81,0.0001,2]
[333484235,1722184964102,-41762.58307666,0.0001,2]
[333484236,1722184964123,-175.81,0.0001009,2]
[333484237,1722184964146,-1200.0,0.000101,3]
[333484238,1722184964167,-999.99,0.000101,2]
[333484239,1722184964188,-499.99,0.000101,2]
[333484240,1722184964214,-299.99,0.000101,2]
[333484241,1722184964236,-1600.0,0.000102,3]
[333484242,1722184964257,-175.81,0.0001029,2]
[333484243,1722184964281,-2100.0,0.000103,3]
[333484244,1722184964304,-400.0,0.000104,3]
[333484245,1722184964325,-188.85,0.00010458,2]
[333484246,1722184964347,-484.5,0.00010458,2]
[333484247,1722184964369,-175.81,0.0001049,2]
[333484248,1722184964390,-400.0,0.000105,3]
[333484249,1722184964412,-400.0,0.000106,3]
[333484250,1722184964434,-400.0,0.000107,3]
[333484251,1722184964455,-1000.0,0.00010797,2]
[333484252,1722184964477,-750.0,0.000108,3]
[333484253,1722184964498,-255.4697,0.000108,2]
[333484254,1722184964520,-175.81,0.0001088,2]
[333484255,1722184964541,-175.81,0.00010887,2]
[333484256,1722184964562,-175.81,0.00010887,2]
[333484257,1722184964583,-175.81,0.00010887,2]
[333484258,1722184964604,-175.81,0.00010887,2]
[333484259,1722184964625,-175.81,0.00010887,2]
[333484260,1722184964647,-175.81,0.00010887,2]
[333484261,1722184964669,-175.81,0.00010887,2]
[333484262,1722184964690,-175.81,0.00010887,2]
[333484263,1722184964711,-175.81,0.00010887,2]
[333484264,1722184964732,-175.81,0.00010887,2]
[333484265,1722184964753,-175.81,0.00010887,2]
[333484266,1722184964773,-175.81,0.00010887,2]
[333484267,1722184964795,-175.81,0.00010887,2]
[333484268,1722184964816,-175.81,0.00010887,2]
[333484269,1722184964837,-175.81,0.00010887,2]
[333484270,1722184964858,-175.81,0.00010887,2]
[333484271,1722184964880,-175.81,0.00010887,2]
[333484272,1722184964901,-175.81,0.00010887,2]
[333484273,1722184964923,-175.81,0.00010887,2]
[333484274,1722184964945,-175.81,0.00010889,2]
[333484275,1722184964966,-175.81,0.00010889,2]
[333484276,1722184964987,-175.81,0.00010889,2]
[333484277,1722184965009,-175.81,0.0001089,2]
[333484278,1722184965033,-175.81,0.0001089,2]
[333484279,1722184965055,-175.81,0.0001089,2]
[333484280,1722184965075,-175.81,0.0001089,2]
[333484281,1722184965096,-175.81,0.0001089,2]
[333484282,1722184965116,-175.81,0.0001089,2]
[333484283,1722184965137,-175.81,0.0001089,2]
[333484284,1722184965158,-175.81,0.0001089,2]
[333484285,1722184965181,-175.81,0.0001089,2]
[333484286,1722184965206,-175.81,0.0001089,2]
[333484287,1722184965228,-175.81,0.0001089,2]
[333484288,1722184965253,-175.81,0.0001089,2]
[333484289,1722184965278,-175.81,0.0001089,2]
[333484290,1722184965302,-175.81,0.0001089,2]
[333484291,1722184965326,-175.81,0.0001089,2]
[333484292,1722184965347,-3000.0,0.0001089,2]
[333484293,1722184965370,-1030.261,0.0001089,2]
[333484294,1722184965391,-363.3224,0.0001089,2]
[333484295,1722184965417,-59396.9454,0.00010897,2]
[333484296,1722184965442,-8890.1113,0.00010899,2]
[333484297,1722184965465,-6065.4356,0.000109,2]
[333484298,1722184965491,-207344.0,0.000109,2]
[333484299,1722184965513,-170.46047083,0.000109,2]
[333484300,1722184965534,-177.69822982,0.000109,2]
[333484301,1722184965555,-500.0,0.00010958,2]
[333484302,1722184965578,-1155.93,0.00010958,2]
[333484303,1722184965599,-500.0,0.00010958,2]
[333484304,1722184965622,-617.63920327,0.00010958,2]
[333484305,1722184965644,-575.67059618,0.00010958,2]
[333484306,1722184965669,-512.66281603,0.00010958,2]
[333484307,1722184965692,-508.62631956,0.00010958,2]
[333484308,1722184965716,-500.0,0.00010958,2]
[333484309,1722184965741,-509.54067912,0.00010958,2]
[333484310,1722184965763,-500.0,0.00010958,2]
[333484311,1722184965788,-578.38244689,0.00010958,2]
[333484312,1722184965810,-512.90306631,0.00010958,2]
[333484313,1722184965831,-606.90872434,0.00010958,2]
[333484314,1722184965851,-150.0,0.00010959,2]
[333484315,1722184965874,-167.56,0.00010959,2]
[333484316,1722184965895,-500.0,0.00010996,2]
[333484317,1722184965918,-500.0,0.00010996,2]
[333484318,1722184965942,-365.55975108,0.00010996,2]
[333484319,1722184965964,-500.0,0.00010996,2]
[333484320,1722184965986,-204.98,0.00010996,2]
[333484321,1722184966007,-500.0,0.00010996,2]
[333484322,1722184966028,-548.02435579,0.00010996,2]
[333484323,1722184966049,-500.0,0.00010996,2]
[333484324,1722184966070,-500.0,0.00010996,2]
[333484325,1722184966090,-500.0,0.00010996,2]
[333484326,1722184966110,-500.0,0.00010996,2]
[333484327,1722184966132,-500.0,0.00010996,2]
[333484328,1722184966155,-500.0,0.00010996,2]
[333484329,1722184966179,-500.0,0.00010996,2]
[333484330,1722184966204,-500.0,0.00010996,2]
[333484331,1722184966226,-500.0,0.00010996,2]
[333484332,1722184966247,-500.0,0.00010996,2]
[333484333,1722184966271,-500.0,0.00010996,2]
[333484334,1722184966292,-500.0,0.00010996,2]
[333484335,1722184966312,-500.0,0.00010996,2]
[333484336,1722184966332,-500.0,0.00010996,2]
[333484337,1722184966353,-530.85338072,0.00010996,2]
[333484338,1722184966374,-516.37680866,0.00010996,2]
[333484339,1722184966394,-513.47300397,0.00010996,2]
[333484340,1722184966415,-516.57607382,0.00010996,2]
[333484341,1722184966436,-500.0,0.00010996,2]
[333484342,1722184966456,-516.6636036,0.00010996,2]
[333484343,1722184966477,-532.22740036,0.00010996,2]
[333484344,1722184966497,-513.98811458,0.00010996,2]
[333484345,1722184966518,-500.0,0.00010996,2]
[333484346,1722184966539,-648.03291814,0.00010996,2]
[333484347,1722184966560,-521.2016103,0.00010996,2]
[333484348,1722184966581,-517.38244778,0.00010996,2]
[333484349,1722184966602,-500.0,0.00010996,2]
[333484350,1722184966624,-500.0,0.00010996,2]
[333484351,1722184966645,-500.0,0.00010996,2]
[333484352,1722184966665,-525.60775662,0.00010996,2]
[333484353,1722184967525,-510.17398448,0.00010996,2]
[333484354,1722184967577,-500.0,0.00010996,2]
[333484355,1722184967603,-500.0,0.00010996,2]
[333484356,1722184967626,-500.0,0.00010996,2]
[333484357,1722184967648,-523.80999908,0.00010996,2]
[333484358,1722184967671,-533.17699307,0.00010996,2]
[333484359,1722184967692,-536.26019725,0.00010996,2]
[333484360,1722184967714,-500.0,0.00010996,2]
[333484361,1722184967736,-514.37505941,0.00010996,2]
[333484362,1722184967758,-500.0,0.00010996,2]
[333484363,1722184967781,-480.67763639,0.00010996,2]
[333484364,1722184967802,-507.80042026,0.00010996,2]
[333484365,1722184967824,-520.44287434,0.00010996,2]
[333484366,1722184967846,-500.0,0.00010996,2]
[333484367,1722184967869,-500.0,0.00010996,2]
[333484368,1722184967892,-500.0,0.00010996,2]
[333484369,1722184967914,-500.0,0.00010996,2]
[333484370,1722184967936,-500.0,0.00010996,2]
[333484371,1722184967957,-443.99596614,0.00010996,2]
[333484372,1722184967979,-220.26750063,0.00010996,2]
[333484373,1722184968001,-5190.37855084,0.00010997,2]
[333484374,1722184968025,-28301.2998853,0.00010997,2]
[333484375,1722184968047,-1016.7068396,0.00010997,2]
[333484376,1722184968070,-461.01999971,0.00010999,2]
[333484377,1722184968093,-172.40082952,0.00010999,2]
[333484378,1722184968115,-578.87219462,0.00010999,2]
[333484379,1722184968138,-500.0,0.00010999,2]
[333484380,1722184968573,-500.0,0.00010999,2]
[333484381,1722184968596,-506.43,0.00010999,2]
[333484382,1722184968622,-500.0,0.00010999,2]
[333484383,1722184968646,-342.02,0.00010999,2]
[333484384,1722184968669,-500.0,0.00010999,2]
[333484385,1722184968690,-412.43669565,0.00010999,2]
[333484386,1722184968712,-202.50850283,0.00010999,2]
[333484387,1722184968733,-500.0,0.00010999,2]
[333484388,1722184968755,-500.0,0.00010999,2]
[333484389,1722184968776,-339.22663719,0.00010999,2]
[333484390,1722184968798,-500.0,0.00010999,2]
[333484391,1722184968820,-500.0,0.00010999,2]
[333484392,1722184968842,-500.0,0.00010999,2]
[333484393,1722184968865,-270.28100598,0.00010999,2]
[333484394,1722184968887,-500.0,0.00010999,2]
[333484395,1722184968909,-592.67,0.00010999,2]
[333484396,1722184968932,-500.0,0.00010999,2]
[333484397,1722184968955,-250.9,0.00010999,2]
[333484398,1722184968980,-500.0,0.00010999,2]
[333484399,1722184969002,-230.78097534,0.00010999,2]
[333484400,1722184969025,-500.0,0.00010999,2]
[333484401,1722184969047,-500.0,0.00010999,2]
[333484402,1722184969070,-500.0,0.00010999,2]
[333484403,1722184969092,-500.0,0.00010999,2]
[333484404,1722184969115,-500.0,0.00010999,2]
[333484405,1722184969138,-500.0,0.00010999,2]
[333484406,1722184969162,-500.0,0.00010999,2]
[333484407,1722184969187,-500.0,0.00010999,2]
[333484408,1722184969213,-500.0,0.00010999,2]
[333484409,1722184969235,-551.0,0.00010999,2]
[333484410,1722184969261,-500.0,0.00010999,2]
[333484411,1722184969287,-500.0,0.00010999,2]
[333484412,1722184969309,-500.0,0.00010999,2]
[333484413,1722184969331,-408.35667823,0.00010999,2]
[333484414,1722184969352,-500.0,0.00010999,2]
[333484415,1722184969374,-500.0,0.00010999,2]
[333484416,1722184969397,-500.0,0.00010999,2]
[333484417,1722184969419,-350.5449374,0.00010999,2]
[333484418,1722184969442,-500.0,0.00010999,2]
[333484419,1722184969463,-611.4154281,0.00010999,2]
[333484420,1722184969485,-500.0,0.00010999,2]
[333484421,1722184969507,-500.0,0.00010999,2]
[333484422,1722184969529,-500.0,0.00010999,2]
[333484423,1722184969551,-409.3889264,0.00010999,2]
[333484424,1722184969572,-500.0,0.00010999,2]
[333484425,1722184969594,-202.38406215,0.00010999,2]
[333484426,1722184969616,-500.0,0.00010999,2]
[333484427,1722184969639,-500.0,0.00010999,2]
[333484428,1722184969661,-500.0,0.00010999,2]
[333484429,1722184969686,-460.59,0.00010999,2]
[333484430,1722184969710,-500.0,0.00010999,2]
[333484431,1722184969732,-453.72003957,0.00010999,2]
[333484432,1722184969757,-500.0,0.00010999,2]
[333484433,1722184969778,-500.0,0.00010999,2]
[333484434,1722184969800,-500.0,0.00010999,2]
[333484435,1722184969823,-500.0,0.00010999,2]
[333484436,1722184969844,-567.67,0.00010999,2]
[333484437,1722184969865,-500.0,0.00010999,2]
[333484438,1722184969887,-500.0,0.00010999,2]
[333484439,1722184969910,-977.64,0.00010999,2]
[333484440,1722184969935,-977.64,0.00010999,2]
[333484441,1722184969958,-977.64,0.00010999,2]
[333484442,1722184969981,-977.64,0.00010999,2]
[333484443,1722184970003,-977.64,0.00010999,2]
[333484444,1722184970025,-977.64,0.00010999,2]
[333484445,1722184970047,-977.64,0.00010999,2]
[333484446,1722184970070,-977.64,0.00010999,2]
[333484447,1722184970093,-977.64,0.00010999,2]
[333484448,1722184970114,-977.64,0.00010999,2]
[333484449,1722184970136,-977.64,0.00010999,2]
[333484450,1722184970159,-977.64,0.00010999,2]
[333484451,1722184970184,-977.64,0.00010999,2]
[333484452,1722184970211,-977.64,0.00010999,2]
[333484453,1722184970235,-977.64,0.00010999,2]
[333484454,1722184970258,-977.64,0.00010999,2]
[333484455,1722184970283,-977.64,0.00010999,2]
[333484456,1722184970306,-977.64,0.00010999,2]
[333484457,1722184970329,-977.64,0.00010999,2]
[333484458,1722184970350,-977.64,0.00010999,2]
[333484459,1722184970373,-977.64,0.00010999,2]
[333484460,1722184970395,-977.64,0.00010999,2]
[333484461,1722184970417,-977.64,0.00010999,2]
[333484462,1722184970440,-977.76735292,0.00010999,2]
[333484463,1722184970463,-500.0,0.00010999,2]
[333484464,1722184970484,-500.0,0.00010999,2]
[333484465,1722184970508,-500.0,0.00010999,2]
[333484466,1722184970530,-155.76196646,0.00010999,2]
[333484467,1722184970552,-500.0,0.00010999,2]
[333484468,1722184970575,-500.0,0.00010999,2]
[333484469,1722184970596,-405.26794868,0.00010999,2]
[333484470,1722184970621,-500.0,0.00010999,2]
[333484471,1722184970643,-500.0,0.00010999,2]
[333484472,1722184970666,-549.14456956,0.00010999,2]
[333484473,1722184970690,-365.82,0.00010999,2]
[333484474,1722184970712,-561.48794232,0.00010999,2]
[333484475,1722184970733,-472.38472387,0.00010999,2]
[333484476,1722184970755,-500.0,0.00010999,2]
[333484477,1722184970776,-221.46831702,0.00010999,2]
[333484478,1722184970798,-1132.57,0.00010999,2]
[333484479,1722184970826,-182827.66488519,0.00011,2]
[333484480,1722184970848,-5000.0,0.00011,2]
[333484481,1722184970869,-5000.0,0.00011,2]
[333484482,1722184970890,-5000.0,0.00011,2]
[333484483,1722184970913,-5211907.3831598,0.00011,2]
[333484484,1722184970938,-4280811.98487494,0.00011,2]
[333484485,1722184970961,-887217.82474492,0.00011,2]
[333484486,1722184970983,-2247873.37506956,0.00011,2]
[333484487,1722184971006,-280562.24138711,0.00011,2]
[333484488,1722184971026,-3017.79243157,0.00011,2]
[333484489,1722184971049,-196369.78616931,0.00011,2]
[333484490,1722184971072,-5342.0,0.00011,2]
[333484491,1722184971094,-2230969.55581692,0.00011,2]
[333484492,1722184971116,-500.0,0.00011,2]
[333484493,1722184971138,-500.0,0.00011,2]
[333484494,1722184971159,-500.0,0.00011,2]
[333484495,1722184971181,-500.0,0.00011,2]
[333484496,1722184971205,-500.0,0.00011,2]
[333484497,1722184971227,-500.0,0.00011,2]
[333484498,1722184971249,-500.0,0.00011,2]
[333484499,1722184971273,-500.0,0.00011,2]
[333484500,1722184971294,-500.0,0.00011,2]
[333484501,1722184971317,-500.0,0.00011,2]
[333484502,1722184971339,-500.0,0.00011,2]
[333484503,1722184971361,-500.0,0.00011,2]
[333484504,1722184971534,-500.0,0.00011,2]
[333484505,1722184971555,-500.0,0.00011,2]
[333484506,1722184971575,-500.0,0.00011,2]
[333484507,1722184971597,-500.0,0.00011,2]
[333484508,1722184971617,-500.0,0.00011,2]
[333484509,1722184971638,-500.0,0.00011,2]
[333484510,1722184971659,-500.0,0.00011,2]
[333484511,1722184971680,-500.0,0.00011,2]
[333484512,1722184971701,-500.0,0.00011,2]
[333484513,1722184971721,-500.0,0.00011,2]
[333484514,1722184971743,-500.0,0.00011,2]
[333484515,1722184971768,-500.0,0.00011,2]
[333484516,1722184971790,-500.0,0.00011,2]
[333484517,1722184971811,-500.0,0.00011,2]
[333484518,1722184971832,-500.0,0.00011,2]
[333484519,1722184971853,-500.0,0.00011,2]
[333484520,1722184971875,-500.0,0.00011,2]
[333484521,1722184971898,-500.0,0.00011,2]
[333484522,1722184971921,-500.0,0.00011,2]
[333484523,1722184971942,-500.0,0.00011,2]
[333484524,1722184971963,-500.0,0.00011,2]
[333484525,1722184971985,-500.0,0.00011,2]
[333484526,1722184972006,-500.0,0.00011,2]
[333484527,1722184972027,-500.0,0.00011,2]
[333484528,1722184972049,-500.0,0.00011,2]
[333484529,1722184972069,-500.0,0.00011,2]
[333484530,1722184972090,-500.0,0.00011,2]
[333484531,1722184972112,-500.0,0.00011,2]
[333484532,1722184972133,-500.0,0.00011,2]
[333484533,1722184972153,-500.0,0.00011,2]
[333484534,1722184972174,-500.0,0.00011,2]
[333484535,1722184972198,-500.0,0.00011,2]
[333484536,1722184972219,-500.0,0.00011,2]
[333484537,1722184972242,-500.0,0.00011,2]
[333484538,1722184972263,-500.0,0.00011,2]
[333484539,1722184972288,-500.0,0.00011,2]
[333484540,1722184972309,-500.0,0.00011,2]
[333484541,1722184972330,-500.0,0.00011,2]
[333484542,1722184972351,-500.0,0.00011,2]
[333484543,1722184972373,-500.0,0.00011,2]
[333484544,1722184972393,-500.0,0.00011,2]
[333484545,1722184972414,-500.0,0.00011,2]
[333484546,1722184972435,-500.0,0.00011,2]
[333484547,1722184972456,-500.0,0.00011,2]
[333484548,1722184972477,-500.0,0.00011,2]
[333484549,1722184972498,-500.0,0.00011,2]
[333484550,1722184972520,-500.0,0.00011,2]
[333484551,1722184972541,-500.0,0.00011,2]
[333484552,1722184972563,-741.0,0.00011,2]
[333484553,1722184972585,-2000.0,0.00011,2]
[333484554,1722184972611,-738004.20444982,0.00011,2]
[333484555,1722184973010,-150.0,0.00011,2]
[333484556,1722184973056,-150.0,0.00011,2]
[333484557,1722184973123,-150.0,0.00011,2]
[333484558,1722184973191,-150.0,0.00011,2]
[333484559,1722184973253,-150.0,0.00011,2]
[333484560,1722184973315,-150.0,0.00011,2]
[333484561,1722184973354,-150.0,0.00011,2]
[333484562,1722184973412,-150.0,0.00011,2]
[333484563,1722184973509,-150.0,0.00011,2]
[333484564,1722184973560,-150.0,0.00011,2]
[333484565,1722184973609,-150.0,0.00011,2]
[333484566,1722184973650,-150.0,0.00011,2]
[333484567,1722184973691,-150.0,0.00011,2]
[333484568,1722184973741,-150.0,0.00011,2]
[333484569,1722184973785,-150.0,0.00011,2]
[333484570,1722184973821,-150.0,0.00011,2]
[333484571,1722184973854,-150.0,0.00011,2]
[333484572,1722184973898,-150.0,0.00011,2]
[333484573,1722184973935,-150.0,0.00011,2]
[333484574,1722184973967,-150.0,0.00011,2]
[333484575,1722184974016,-150.0,0.00011,2]
[333484576,1722184974058,-150.0,0.00011,2]
[333484577,1722184974110,-150.0,0.00011,2]
[333484578,1722184974148,-150.0,0.00011,2]
[333484579,1722184974184,-150.0,0.00011,2]
[333484580,1722184974220,-150.0,0.00011,2]
[333484581,1722184974404,-150.0,0.00011,2]
[333484582,1722184974682,-150.0,0.00011,2]
[333484583,1722184974957,-150.0,0.00011,2]
[333484584,1722184975410,-150.0,0.00011,2]
[333484585,1722184975681,-150.0,0.00011,2]
[333484586,1722185016614,-348.60567054,8.219e-05,2]
[333484587,1722185016635,-10000.0,0.0001045,2]
[333484588,1722185016656,-1072.98600697,0.0001078,2]
[333484589,1722185016677,-1160.20386426,0.0001078,2]
[333484590,1722185016698,-1000.0,0.00010797,2]
[333484591,1722185016720,-1273.5628,0.00010797,2]
[333484592,1722185016741,-318144.64165823,0.000108,2]
[333484593,1722185028943,-250.0,0.00010369,2]
[333484594,1722185028967,-3209.7081172,0.000108,2]
[333484595,1722185028990,-11540.2918828,0.000108,2]
[333484596,1722185041946,-1049.45031214,0.000108,2]
[333484597,1722185041972,-2950.06645897,0.000108,2]
[333484598,1722185041996,-366.84836799,0.000109,2]
[333484599,1722185042018,-718.610488,0.000109,2]
[333484600,1722185042041,-500.0,0.00010958,2]
[333484601,1722185042063,-392.0731038,0.00010995,2]
[333484602,1722185042086,-1056.455033,0.00010995,2]
[333484603,1722185042109,-300.0,0.00010998,2]
[333484604,1722185042129,-210.6438593,0.00010999,2]
[333484605,1722185042150,-2455.8523768,0.00010999,2]
[333484606,1722185214917,436.05,8.31e-05,2]
[333484653,1722185257387,158.89214618,8.31e-05,2]
[333484654,1722185259711,244.51851626,8.31e-05,2]
[333484655,1722185264748,411.49590119,8.31e-05,2]
[333484656,1722185265653,8749.04343637,8.31e-05,2]
[333484657,1722185265674,10000.0,8.31e-05,2]
[333484658,1722185265696,6027.24409004,8.31e-05,2]
[333484659,1722185268971,871.33841357,8.31e-05,2]
[333484660,1722185270918,3101.41749639,8.31e-05,2]
[333484661,1722185270941,10000.0,8.31e-05,2]
[333484662,1722185270964,6624.11483033,8.31e-05,2]
[333484663,1722185329194,683.1783509,8.31e-05,2]
[333484668,1722185359235,304.69251132,8.31e-05,2]
[333484669,1722185362252,411.49590119,8.31e-05,2]
[333484670,1722185386469,871.33841357,8.31e-05,2]
[333484671,1722185388626,1105.17999269,8.31e-05,2]
[333484672,1722185388650,10000.0,8.31e-05,2]
[333484673,1722185388673,10000.0,8.31e-05,2]
[333484674,1722185388696,3671.10753372,8.31e-05,2]
[333484675,1722185400664,6328.89246628,8.31e-05,2]
[333484676,1722185400687,10000.0,8.31e-05,2]
[333484677,1722185400708,8447.39506013,8.31e-05,2]
[333484683,1722185431387,-150.0,9.888e-05,2]
[333484684,1722185431398,-172.91174239,0.00010073,2]
[333484685,1722185431629,-238.5841588,0.00010073,2]
[333484686,1722185431639,-342.48384039,0.00010359,2]
[333484687,1722185431652,-337.51615961,0.00010359,2]
[333484688,1722185431663,-436.05,0.00010574,2]
[333484689,1722185431674,-1386.33856205,0.00010634,2]
[333484690,1722185431685,-300.0,0.00010727,2]
[333484691,1722185431694,-300.0,0.00010796,2]
[333484692,1722185431705,-29717.9276,0.00010797,2]
[333484693,1722185431717,-301.01828484,0.00010802,2]
[333484694,1722185431727,-188.02784338,0.00010824,2]
[333484695,1722185431736,-3000.0,0.0001089,2]
[333484697,1722185431747,-150.0,0.000109,2]
[333484699,1722185431757,-397.89295288,0.000109,2]
[333484701,1722185431767,-150.0,0.000109,2]
[333484703,1722185431776,-500.0,0.00010958,2]
[333484705,1722185431785,-534.93394803,0.00010958,2]
[333484706,1722185431795,-150.0,0.00010986,2]
[333484708,1722185431805,-662.6096247,0.00010995,2]
[333484709,1722185431815,-1651.9590585,0.00010995,2]
[333484710,1722185431825,-236.5278303,0.00010995,2]
[333484711,1722185431835,-513.95042908,0.00010996,2]
[333484712,1722185431843,-1604.5769318,0.00010999,2]
[333484713,1722185431858,-1050.95366184,0.00010999,2]
[333484714,1722185431867,-328.88619916,0.00010999,2]
[333484715,1722185431876,-500.0,0.00010999,2]
[333484716,1722185431885,-260.82714735,0.00010999,2]
[333484717,1722185431895,-500.0,0.00010999,2]
[333484718,1722185431904,-500.0,0.00010999,2]
[333484719,1722185431913,-500.0,0.00010999,2]
[333484720,1722185431922,-1064.54,0.00010999,2]
[333484721,1722185431932,-500.0,0.00010999,2]
[333484722,1722185431941,-981755.89767292,0.00011,2]
[333484723,1722185431952,-576.41012845,0.00011,2]
[333484724,1722185431963,-43733.77909607,0.00011,2]
[333484725,1722185431979,-11428.7779705,0.00011,2]
[333484726,1722185431989,-283.21327208,0.00011,2]
[333484727,1722185432000,-46496.65951031,0.00011,2]
[333484728,1722185432011,-2005.57355483,0.00011,2]
[333484729,1722185432023,-10525.98379244,0.00011,2]
[333484730,1722185432035,-1507.26682709,0.00011,2]
[333484731,1722185432047,-608.42001,0.00011,2]
[333484732,1722185432058,-716.59388063,0.00011,2]
[333484733,1722185432070,-1931.16017973,0.00011,2]
[333484734,1722185432082,-280.56667432,0.00011,2]
[333484735,1722185432094,-746.44510063,0.00011,2]
[333484736,1722185432106,-1650.99,0.00011,2]
[333484739,1722185437388,-593.26283311,0.00010073,2]
[333484741,1722185437398,-53.03872271,0.00010999,2]
[333484750,1722185437497,-749.24974319,0.00010999,2]
[333484751,1722185437506,-475.55323024,0.00010999,2]
[333484752,1722185437516,-13241.40065403,0.00011,2]
[333484753,1722185437527,-2348.40046312,0.00011,2]
[333484754,1722185437647,-6500.0,0.00011,2]
[333484755,1722185437766,-1004.1745623,0.00011,2]
[333484756,1722185437780,-450.95372915,0.00011,2]
[333484757,1722185437824,-17154.09018915,0.00011,2]
[333484763,1722185439447,-300.0,0.00010846,2]
[333484764,1722185439457,-231.2423039,0.00011,2]
[333484765,1722185439470,-323.19502115,0.00011,2]